Cogmind - Beta 12 @@@ ROGUE MODE // 2023.06.07 @ 21:16:07 Player: zeramoth Result: Destroyed by as-68889 with Assembled Rifle Performance ------------- Evolutions (0) 0 Regions Visited (2) 400 Robots Destroyed (12) 60 Value Destroyed (230) 230 Prototype IDs (0) 0 Alien Tech Used (0) 0 Bonus (0) 0 TOTAL SCORE: 690 Bonus ------- None Cogmind --------- Core Integrity 0/250 Matter 277/300 Energy 250/250 System Corruption 2% Temperature Cool (0) Movement Rolling (95) Ox1 Location -10/Mines Parts ------- > --- POWER (1) -------- Ion Engine > --- PROPULSION (2) --- Wheel Wheel > --- UTILITY (2) ------ Small Storage Unit Large Storage Unit > --- WEAPON (2) ------- (None) > --- INVENTORY (15) --- Aluminum Leg Compact Wheel Compact Wheel Compact Wheel Large Storage Unit Signal Interpreter Targeting Computer Grenade Launcher Peak State ------------ > --- POWER ------------ Light Ion Engine > --- PROPULSION ------- Compact Wheel Compact Wheel > --- UTILITY ---------- Small Storage Unit Large Storage Unit > --- WEAPON ----------- Small Laser Light Assault Rifle > --- INVENTORY -------- Ion Engine Aluminum Leg Wheel Wheel Compact Wheel Large Storage Unit Signal Interpreter Targeting Computer Light Assault Rifle Grenade Launcher [Rating: 8] Favorites ----------- Power Light Ion Engine Engine Light Ion Engine Propulsion Compact Wheel Leg Aluminum Leg Wheel Compact Wheel Utility Small Storage Unit Storage Small Storage Unit Weapon Light Assault Rifle Energy Gun Small Laser Ballistic Gun Light Assault Rifle Launcher Grenade Launcher Build | -11 -10 -10 ------- Run | Jun Mat Min Slots Evolved . | . . . Power . | . . . Propulsion . | . . . Utility . | . . . Weapon . | . . . Parts Attached 13 | 3 6 4 Power 1 | . . 1 Engine 1 | . . 1 Core . | . . . Reactor . | . . . Propulsion 6 | 2 2 2 Treads . | . . . Leg . | . . . Wheel 6 | 2 2 2 Hover . | . . . Flight . | . . . Utility 2 | 1 1 . Device . | . . . Storage 2 | 1 1 . Processor . | . . . Hackware . | . . . Protection . | . . . Artifact . | . . . Weapon 4 | . 3 1 Energy Gun 1 | . 1 . Energy Cannon . | . . . Ballistic Gun 2 | . 1 1 Ballistic Cannon . | . . . Launcher 1 | . 1 . Special Weapon . | . . . Impact Weapon . | . . . Slashing Weapon . | . . . Piercing Weapon . | . . . Special Melee Weapon . | . . . Unidentified Prototypes . | . . . Parts Lost 7 | . 1 6 Power 1 | . . 1 Propulsion 2 | . . 2 Utility . | . . . Weapon 4 | . 1 3 Highest Loss Streak 6 | . 1 6 To Critical Strikes . | . . . Average Slot Usage (%) 96 | . 100 79 Engine 13 | . 14 12 Wheel 27 | . 28 22 Storage 28 | . 28 28 Energy Gun 12 | . 13 5 Ballistic Gun 13 | . 14 9 Naked Turns . | . . . Heaviest Build 32 | 15 30 32 Greatest Support 32 | 32 32 32 Greatest Overweight (x) 9 | . . 9 Average Overweight (x) . | . . . Largest Inventory Capacity 15 | 8 15 15 Average Capacity 13 | 8 13 15 Most Carried 11 | 8 11 11 Average Carried 9 | 7 9 9 Final Capacity 15 | 8 15 15 Final Carried 11 | 8 11 8 Class Distribution -------------------- 100% | Mutant Dominant Class ---------------- Mutant | -10/Materials Mutant | -10/Mines Resources | -11 -10 -10 ----------- Run | Jun Mat Min Matter Collected 328 | 222 95 11 Remotely . | . . . Salvage Created 472 | 100 308 64 Parts 32 | 5 21 6 Haulers Intercepted 1 | . 1 . Recyclers Shooed 1 | . 1 . Parts Field Recycled . | . . . Retrieved Matter . | . . . Parts Self-Destructed . | . . . Prevented . | . . . Kills | -11 -10 -10 ------- Run | Jun Mat Min Combat Hostiles Destroyed 11 | . 7 4 Guns 11 | . 7 4 Classes Destroyed 5 | 1 3 1 Hauler 1 | . 1 . Recycler 1 | 1 . . Swarmer 6 | . 3 3 Grunt 4 | . 4 . Assembled 1 | . . 1 Best Kill Streak 3 | 1 2 3 Combat Bots Only 3 | . 2 3 Max Kills in Single Turn 2 | 1 1 2 Gunslinging 1 | . . 1 Exploded . | . . . Melee . | . . . Uniques/NPCs Destroyed . | . . . Combat | -11 -10 -10 -------- Run | Jun Mat Min Damage Taken 857 | . 282 575 Core 253 | . 36 217 Absorbed by Shields . | . . . Core Remaining (%) 100 | 100 . . Volleys Fired 45 | 2 28 15 Largest 2 | 2 2 2 Hottest 60 | 60 60 60 Shots Fired 86 | 4 55 27 Gun 86 | 4 55 27 Cannon . | . . . Launcher . | . . . Special . | . . . Kinetic 52 | 2 30 20 Thermal 34 | 2 25 7 Explosive . | . . . Electromagnetic . | . . . Robot Hit Streak 21 | 2 21 5 Robot Miss Streak 7 | 1 7 3 Penetration Max . | . . . Secondary Targets 3 | . 2 1 Max Gunslinging Chain 1 | . 1 1 Shots Hit Robots 48 | 3 29 16 Core Hits 25 | 2 16 7 Critical Kills . | . . . Critical Parts Destroyed . | . . . Critical Strikes . | . . . Melee Attacks . | . . . Impact . | . . . Slashing . | . . . Piercing . | . . . Sneak Attacks . | . . . Combat Hostiles . | . . . Follow-up Attacks . | . . . Damage Inflicted 467 | 28 291 148 Guns 467 | 28 291 148 Cannons . | . . . Explosions . | . . . Melee . | . . . Ramming . | . . . Kinetic 252 | 18 140 94 Thermal 215 | 10 151 54 Explosive . | . . . Electromagnetic . | . . . Impact . | . . . Slashing . | . . . Piercing . | . . . Highest Corruption 2 | . 2 2 Average Corruption 2 | . 2 2 Corruption Purged . | . . . Corruption Blocked . | . . . Effects 2 | . . 2 Heat Flow Errors 2 | . . 2 Overload Shots . | . . . Overflow Damage . | . . . Projectiles . | . . . Explosions . | . . . Melee . | . . . Knockbacks . | . . . Impact . | . . . Kinetic . | . . . Secondary . | . . . Self-Inflicted Damage . | . . . Shots . | . . . Rammed . | . . . Targets Rammed . | . . . Kicked . | . . . Crushed . | . . . Highest Temperature 266 | 20 82 266 Average Temperature 59 | 15 28 115 Received Heat Transfer 95 | . 75 20 Siege Activations . | . . . Robots Corrupted . | . . . Combat Hostiles . | . . . Parts Fried . | . . . Impact Corruptions . | . . . Robots Melted . | . . . Combat Hostiles . | . . . Parts Melted 1 | . 1 . Heat Transferred 500 | 25 350 125 Parts Sabotaged . | . . . Parts Stolen . | . . . Parts Stripped . | . . . Power Chain Reactions . | . . . Missiles Intercepted . | . . . Alert | -11 -10 -10 ------- Run | Jun Mat Min Peak Influence 153 | 5 153 105 Initial 30 | . 3 30 Average 51 | 4 48 75 Maximum Alert Level . | . . . Low Security (%) 100 | 100 100 100 Level 1 . | . . . Level 2 . | . . . Level 3 . | . . . Level 4 . | . . . Level 5 . | . . . High Security . | . . . Max Security . | . . . Squads Dispatched 1 | . 1 . Investigation 1 | . 1 . Extermination . | . . . Reinforcement . | . . . Assault . | . . . Garrison . | . . . Intercept . | . . . Searches Triggered . | . . . Construction Impeded . | . . . Haulers Reinforced . | . . . Active Scanning Responses . | . . . Cargo Convoy Interrupts . | . . . Stealth | -11 -10 -10 --------- Run | Jun Mat Min Distress Signals . | . . . Communications Jammed . | . . . Distress Signals . | . . . Times Spotted 19 | . 12 7 Peak Tracking Total 3 | . 3 3 Tactical Retreats . | . . . Traps | -11 -10 -10 ------- Run | Jun Mat Min Traps Triggered 2 | . 2 . Indirectly . | . . . Trap Hack Attempts . | . . . Triggered . | . . . Disarmed . | . . . Reprogrammed . | . . . Reused . | . . . Traps Extracted . | . . . Installed . | . . . Triggered . | . . . Machines | -11 -10 -10 ---------- Run | Jun Mat Min Machines Disabled . | . . . Max in Single Turn . | . . . Machines Repaired . | . . . Machines Sabotaged . | . . . Overloaded Fab Kills . | . . . Hacking | -11 -10 -10 --------- Run | Jun Mat Min Machines Accessed 2 | . 2 . Terminals 2 | . 2 . Fabricators . | . . . Repair Stations . | . . . Recycling Units . | . . . Scanalyzers . | . . . Garrison Access . | . . . Total Hacks 5 | . 5 . Successful 1 | . 1 . Failed 4 | . 4 . Catastrophic 2 | . 2 . Database Lockouts . | . . . Manual 5 | . 5 . Terminals 5 | . 5 . Fabricators . | . . . Repair Stations . | . . . Recycling Units . | . . . Scanalyzers . | . . . Garrison Access . | . . . Terminal Hacks 1 | . 1 . Recall Investigation 1 | . 1 . Fabricator Hacks . | . . . Repair Station Hacks . | . . . Recycling Unit Hacks . | . . . Scanalyzer . | . . . Garrison Access Hacks . | . . . Unauthorized Hacks . | . . . Terminals . | . . . Fabricators . | . . . Repair Stations . | . . . Recycling Units . | . . . Scanalyzers . | . . . Garrison Access . | . . . Data Cores Recovered . | . . . Used . | . . . Hacking Detections 2 | . 2 . Full Trace Events . | . . . Feedback Events . | . . . Feedback Blocked . | . . . Robot Schematics Acquired . | . . . Robots Built . | . . . Authchips . | . . . Time . | . . . Total Robot Build Rating . | . . . Part Schematics Acquired . | . . . Parts Built . | . . . Authchips . | . . . Time . | . . . Total Part Build Rating . | . . . Parts Repaired . | . . . Time . | . . . Parts Recycled . | . . . Recycled Matter . | . . . Retrieved Matter . | . . . Retrieved Components . | . . . Parts Scanalyzed . | . . . Part Schematics Acquired . | . . . Parts Damaged . | . . . Bothacking | -11 -10 -10 ------------ Run | Jun Mat Min Used RIF Installer . | . . . Robots Hacked . | . . . Non-combat . | . . . Combat . | . . . Robot Hacks Applied . | . . . Relay Couplers Released . | . . . Fabnet Peak Effective % . | . . . Robots Rewired . | . . . Allies Hacked . | . . . Hacks Repelled . | . . . Allies | -11 -10 -10 -------- Run | Jun Mat Min Total Allies . | . . . Largest Group . | . . . Highest-Rated Group . | . . . Highest-Rated Ally . | . . . Total Orders . | . . . Ally Attacks . | . . . Total Damage . | . . . Kills . | . . . Allies Corrupted . | . . . Allies Melted . | . . . Intel | -11 -10 -10 ------- Run | Jun Mat Min Robot Analysis Total . | . . . Derelict Logs Recovered 1 | . . 1 Drone Launches . | . . . Drone Recoveries . | . . . Exploration | -11 -10 -10 ------------- Run | Jun Mat Min Turns Passed 632 | 27 508 97 Spaces Moved 428 | 16 366 46 Core 2 | . . 2 Treads . | . . . Legs 4 | 4 . . Wheels 422 | 12 366 44 Hover . | . . . Flight . | . . . Fastest Speed 95 | 100 100 95 Average Speed 101 | 105 100 115 Slowest Speed 500 | 120 100 500 Overloaded Moves . | . . . Propulsion Burnouts . | . . . Robots Hopped . | . . . Cave-ins Triggered . | . . . Exploration Rate (%) 22 | 2 51 14 Regions Visited 2 Branch Regions 1 Pre-discovered Areas . | . . . Known Exits Taken . | . . . Unknown Exits Taken 2 | 1 1 . Scrap Searched . | . . . Spaces Dug . | . . . Terrain Destroyed . | . . . Melee . | . . . Projectile . | . . . AOE . | . . . Terrain Rammed . | . . . Walls Destroyed . | . . . Machines Disabled . | . . . Actions | -11 -10 -10 --------- Run | Jun Mat Min Total 547 | 22 459 66 Wait 49 | . 49 . Move 426 | 15 365 46 Hop . | . . . Pick Up 7 | . 6 1 Fast Attach 3 | 3 . . Attach 5 | . 1 4 Detach 2 | 2 . . Swap 5 | . 5 . Drop 5 | . 5 . Fire 45 | 2 28 15 Melee . | . . . Ram . | . . . Kick . | . . . Crush . | . . . Escape Stasis . | . . . Rewire . | . . . Trap . | . . . Miscellaneous . | . . . Route ------- -11/Junkyard -10/Materials (discovered 2 exits: *Mat / [*Min]) -10/Mines (discovered 1 exit: Mat) History --------- Turn | Location | Event 1 | -11/Junkyard | Discovered new exit (range 3) 28 | -11/Junkyard | Entered Materials 232 | -10/Materials | Discovered new exit (range 8) 300 | -10/Materials | Build established: Mutant 521 | -10/Materials | Discovered new exit (range 16) 536 | -10/Materials | Entered Mines 555 | -10/Mines | Met a Derelict bent on vengeance 564 | -10/Mines | Assembled infested the area 566 | -10/Mines | Identified exit to Materials 595 | -10/Mines | Core integrity fell below 50% 616 | -10/Mines | Core integrity fell below 20% 630 | -10/Mines | Lost 6 parts (1p2n3w) 633 | -10/Mines | Destroyed by as-68889 with Assembled Rifle Last Messages --------------- 00576_ Sml. Laser destroyed. 00589_ as-90596 destroyed. 00591_ C-30 ARC bursts open, deploying its payload. 00591_ D-53 Grenadier unfolds itself. 00592_ Lgt. Assault Rifle destroyed. 00593_ U-05 Engineer builds a Wall. 00593_ Com. Wheel destroyed. 00594_ D-53 Grenadier destroyed. 00597_ U-05 Engineer builds a Wall. 00597_ Lgt. Assault Rifle destroyed. 00598_ The unstable cave ceiling collapses. 00599_ Com. Wheel destroyed. 00601_ The unstable cave ceiling collapses. 00601_ D-53 Grenadier destroyed. 00602_ The unstable cave ceiling collapses. 00602_ U-05 Engineer lays Concrete. 00603_ U-05 Engineer builds a Wall. 00605_ The unstable cave ceiling collapses. 00617_ System corrupted: Heat flow error (+286). 00618_ The unstable cave ceiling collapses. Map ----- +----------------------------------------------------+ | ???????????????????????????????????????????????? | | ???????????????????????????????????????????????? | | ???????????????????????????????????????????????? | | ???????????????????????????????????????????????? | | ???????????????????????????????????????????????? | | ???????????????????????????????????????????????? | | ???????????????????????????????????????????????? | | ???????????????????????????????????????????????? | | ???????????????????????????????????????????????? | | ???????????????????????????????????????????????? | | ????????????????????????????????????????? ?????? | | ?????????????????????????????????????????*?????? | | ?????????????????????????????????????????%""???? | | ????????????????????????????????????????? ""???? | | ????????????????????????????????????????? ???? | | ?????????????????????????????????????????# #???? | | ?????????????????????????????????????????# #???? | | ?????????????????????????????????????????# #???? | | ??????????????? ????????????????????????? #???? | | ??????????????? ???????????????????????## #???? | | ???????????????? ????????????????????## ##??? | | ????????????????? #######????????##### #??? | | ?????????????????? #??????### < ##?? | | ????????????????????? a #?????## #?? | | ???????????????????????# ####### #?? | | ???????????????????????# @ ## ### | | ???????????????????????# a # # | | ???????????????????????########## #### # # | | ????????????????????????????????# #??#### | | ????????????????????????????????# #?????# # | | ????????????????????????????????# ####### # # | | ????????????????????????????????# # | | ????????????????????????????????######## # | | ???????????????????????????????????????# % | | ???????????????????????????????????????# ## # | | ???????????????????????????????????????# # | | ???????????????????????????????????????# # # | | ???????????????????????????????????????# ####### | | ????????????????????????????????######## #?????? | | ????????????????????????????# $ #?????? | | ????????????????????????????????######## #?????? | | ?????????????????????????????????????### #####?? | | ?????????????????????????????????????# #?? | | ?????????????????????????????????????# #?? | | ?????????????????????????????????????# % % #?? | | ?????????????????????????????????????# =%** #?? | | ???????????????????????